[Event "Live Chess"]
[Site "Chess.com"]
[Date "2023.05.20"]
[Round "-"]
[White "Kr1xot4_XGOD"]
[Black "Ra2orLeaf"]
[Result "1-0"]
[WhiteElo "2189"]
[BlackElo "1142"]
[TimeControl "300"]
[EndTime "10:30:12 PDT"]
[Termination "Kr1xot4_XGOD won by checkmate"]

1. f4 {[%clk 0:04:53.3]} 1... c5 {[%clk 0:04:59.6]} 2. e4 {[%clk 0:04:49.8]}
2... d5 {[%clk 0:04:57.6]} 3. exd5 {[%clk 0:04:47.5]} 3... Qxd5 {[%clk
0:04:57.5]} 4. Nc3 {[%clk 0:04:45.2]} 4... Qd8 {[%clk 0:04:56.7]} 5. Bb5+ {[%clk
0:04:42]} 5... Bd7 {[%clk 0:04:54.3]} 6. Bxd7+ {[%clk 0:04:39.9]} 6... Nxd7
{[%clk 0:04:54.2]} 7. Qf3 {[%clk 0:04:34.2]} 7... e6 {[%clk 0:04:53.3]} 8. Qxb7
{[%clk 0:04:30.7]} 8... Qb8 {[%clk 0:04:47.2]} 9. Qxb8+ {[%clk 0:04:26.7]} 9...
Rxb8 {[%clk 0:04:47.1]} 10. b3 {[%clk 0:04:22]} 10... Bd6 {[%clk 0:04:46.5]} 11.
Nge2 {[%clk 0:04:17.7]} 11... Ndf6 {[%clk 0:04:43.5]} 12. Ba3 {[%clk 0:04:14.8]}
12... Nh5 {[%clk 0:04:40.2]} 13. O-O {[%clk 0:04:11.1]} 13... Ngf6 {[%clk
0:04:36.3]} 14. d4 {[%clk 0:04:08]} 14... Rc8 {[%clk 0:04:23]} 15. Nb5 {[%clk
0:04:04.9]} 15... Ne4 {[%clk 0:04:01.7]} 16. Nxa7 {[%clk 0:03:59.5]} 16... Ra8
{[%clk 0:03:56.8]} 17. Bxc5 {[%clk 0:03:56.1]} 17... Nxc5 {[%clk 0:03:52]} 18.
Nb5 {[%clk 0:03:51.7]} 18... Nb7 {[%clk 0:03:35.5]} 19. c4 {[%clk 0:03:48.4]}
19... O-O {[%clk 0:03:32]} 20. c5 {[%clk 0:03:45.3]} 20... Bb8 {[%clk 0:03:20]}
21. b4 {[%clk 0:03:41.7]} 21... Nf6 {[%clk 0:03:16.3]} 22. a4 {[%clk 0:03:37.9]}
22... Nd5 {[%clk 0:03:14.1]} 23. Nbc3 {[%clk 0:03:34.9]} 23... Rd8 {[%clk
0:03:07.2]} 24. Nxd5 {[%clk 0:03:31.2]} 24... Rxd5 {[%clk 0:03:07.1]} 25. Rfc1
{[%clk 0:03:27.5]} 25... Kf8 {[%clk 0:02:53.6]} 26. g3 {[%clk 0:03:16.6]} 26...
Ke7 {[%clk 0:02:36.3]} 27. a5 {[%clk 0:02:59.2]} 27... Ra6 {[%clk 0:02:31.6]}
28. Rcb1 {[%clk 0:02:52.1]} 28... Kd7 {[%clk 0:02:20.9]} 29. h4 {[%clk
0:02:45.2]} 29... h5 {[%clk 0:02:02.5]} 30. Kf2 {[%clk 0:02:32.2]} 30... Nd8
{[%clk 0:01:36.9]} 31. b5 {[%clk 0:02:29.1]} 31... Ra8 {[%clk 0:01:23.9]} 32. a6
{[%clk 0:02:21.7]} 32... f6 {[%clk 0:00:41.1]} 33. b6 {[%clk 0:02:17.2]} 33...
Kc6 {[%clk 0:00:33.4]} 34. b7 {[%clk 0:02:13.3]} 34... Ra7 {[%clk 0:00:27.5]}
35. Rb6+ {[%clk 0:02:12.8]} 35... Kc7 {[%clk 0:00:25.6]} 36. Rab1 {[%clk
0:02:09.1]} 36... Nc6 {[%clk 0:00:20.4]} 37. Rxc6+ {[%clk 0:01:54.6]} 37... Kxc6
{[%clk 0:00:18.9]} 38. Rb6+ {[%clk 0:01:52.5]} 38... Kc7 {[%clk 0:00:18.8]} 39.
Nc3 {[%clk 0:01:48.6]} 39... Rxd4 {[%clk 0:00:16.6]} 40. Nb5+ {[%clk 0:01:45.2]}
40... Kd7 {[%clk 0:00:13.4]} 41. Nxd4 {[%clk 0:01:41.6]} 41... Bc7 {[%clk
0:00:11.6]} 42. c6+ {[%clk 0:01:37.4]} 42... Kd6 {[%clk 0:00:09]} 43. Nb5+
{[%clk 0:01:33.8]} 43... Kc5 {[%clk 0:00:07.2]} 44. Nxc7 {[%clk 0:01:30.9]}
44... Kxb6 {[%clk 0:00:06.4]} 45. Nxe6 {[%clk 0:01:28.2]} 45... Kxc6 {[%clk
0:00:04.2]} 46. b8=Q {[%clk 0:01:24.9]} 46... Rxa6 {[%clk 0:00:02.7]} 47. Qc8+
{[%clk 0:01:20.9]} 47... Kb5 {[%clk 0:00:02.2]} 48. Nd4+ {[%clk 0:01:11.5]}
48... Ka4 {[%clk 0:00:02.1]} 49. Qc4+ {[%clk 0:01:08.4]} 49... Ka5 {[%clk
0:00:01.1]} 50. Qb5# {[%clk 0:01:05.1]} 1-0

[Event "Live Chess"]
[Site "Chess.com"]
[Date "2023.05.20"]
[Round "-"]
[White "Driftboard"]
[Black "TobyQuaite"]
[Result "0-1"]
[WhiteElo "683"]
[BlackElo "1701"]
[TimeControl "300"]
[EndTime "10:30:25 PDT"]
[Termination "TobyQuaite won by checkmate"]

1. e4 {[%clk 0:04:59.4]} 1... e6 {[%clk 0:04:57.8]} 2. d4 {[%clk 0:04:57.1]}
2... d5 {[%clk 0:04:56.3]} 3. exd5 {[%clk 0:04:54.3]} 3... exd5 {[%clk
0:04:56.2]} 4. Nf3 {[%clk 0:04:52.9]} 4... Nf6 {[%clk 0:04:56.1]} 5. Bd3 {[%clk
0:04:50.8]} 5... Bd6 {[%clk 0:04:55.8]} 6. O-O {[%clk 0:04:50.1]} 6... O-O
{[%clk 0:04:55.5]} 7. Nc3 {[%clk 0:04:48.3]} 7... c6 {[%clk 0:04:54.3]} 8. Bg5
{[%clk 0:04:47.6]} 8... h6 {[%clk 0:04:53.6]} 9. Bxf6 {[%clk 0:04:46.7]} 9...
Qxf6 {[%clk 0:04:53.5]} 10. Qd2 {[%clk 0:04:44.1]} 10... Bg4 {[%clk 0:04:51.8]}
11. Be2 {[%clk 0:04:38]} 11... Nd7 {[%clk 0:04:49.7]} 12. h3 {[%clk 0:04:36.6]}
12... Bh5 {[%clk 0:04:47.9]} 13. Nh2 {[%clk 0:04:30.2]} 13... Bf4 {[%clk
0:04:35.2]} 14. Qd3 {[%clk 0:04:16.4]} 14... Bg6 {[%clk 0:04:32.8]} 15. Qf3
{[%clk 0:04:11.5]} 15... Rfe8 {[%clk 0:04:12.6]} 16. Rfe1 {[%clk 0:04:07.2]}
16... Qd6 {[%clk 0:04:02.5]} 17. g3 {[%clk 0:03:59.1]} 17... Bg5 {[%clk
0:03:58]} 18. h4 {[%clk 0:03:56]} 18... Bf6 {[%clk 0:03:56.7]} 19. Ng4 {[%clk
0:03:54.6]} 19... Bxd4 {[%clk 0:03:53.7]} 20. Bd3 {[%clk 0:03:37.5]} 20... Bxc3
{[%clk 0:03:50.7]} 21. bxc3 {[%clk 0:03:28.8]} 21... Bxd3 {[%clk 0:03:46.7]} 22.
cxd3 {[%clk 0:03:26.9]} 22... Ne5 {[%clk 0:03:40.4]} 23. Nxe5 {[%clk 0:03:24.7]}
23... Rxe5 {[%clk 0:03:40.3]} 24. d4 {[%clk 0:03:23.1]} 24... Re6 {[%clk
0:03:32.3]} 25. Qf5 {[%clk 0:03:16.4]} 25... Rf6 {[%clk 0:03:28.7]} 26. Qe5
{[%clk 0:03:12.1]} 26... Qxe5 {[%clk 0:03:22.1]} 27. Rxe5 {[%clk 0:03:07.8]}
27... Re6 {[%clk 0:03:21.2]} 28. Rae1 {[%clk 0:03:04.7]} 28... Rae8 {[%clk
0:03:19]} 29. Kg2 {[%clk 0:03:02.9]} 29... Rxe5 {[%clk 0:03:17.7]} 30. Rxe5
{[%clk 0:03:01.2]} 30... Rxe5 {[%clk 0:03:16.9]} 31. dxe5 {[%clk 0:03:00.4]}
31... Kf8 {[%clk 0:03:16.6]} 32. Kf3 {[%clk 0:02:59.5]} 32... Ke7 {[%clk
0:03:16]} 33. Kf4 {[%clk 0:02:58.8]} 33... Ke6 {[%clk 0:03:14.7]} 34. g4 {[%clk
0:02:56.1]} 34... g5+ {[%clk 0:03:11.1]} 35. hxg5 {[%clk 0:02:54.5]} 35... hxg5+
{[%clk 0:03:11]} 36. Kxg5 {[%clk 0:02:53.5]} 36... Kxe5 {[%clk 0:03:10.6]} 37.
f4+ {[%clk 0:02:50.4]} 37... Ke6 {[%clk 0:03:09.4]} 38. f5+ {[%clk 0:02:47.5]}
38... Ke7 {[%clk 0:03:09]} 39. Kh6 {[%clk 0:02:45]} 39... b5 {[%clk 0:03:06.8]}
40. Kg7 {[%clk 0:02:44]} 40... b4 {[%clk 0:03:05.2]} 41. g5 {[%clk 0:02:43.4]}
41... bxc3 {[%clk 0:03:03.8]} 42. f6+ {[%clk 0:02:42.6]} 42... Ke6 {[%clk
0:03:02.4]} 43. g6 {[%clk 0:02:40.6]} 43... fxg6 {[%clk 0:03:02.3]} 44. Kxg6
{[%clk 0:02:39.8]} 44... c2 {[%clk 0:03:00.7]} 45. f7 {[%clk 0:02:38.9]} 45...
c1=Q {[%clk 0:02:59.7]} 46. f8=Q {[%clk 0:02:37.2]} 46... Qg1+ {[%clk
0:02:59.2]} 47. Kh7 {[%clk 0:02:33.6]} 47... Qh2+ {[%clk 0:02:54.2]} 48. Kg6
{[%clk 0:02:31.1]} 48... Qg3+ {[%clk 0:02:53]} 49. Kh6 {[%clk 0:02:27.2]} 49...
Qh4+ {[%clk 0:02:44.9]} 50. Kg6 {[%clk 0:02:25.6]} 50... Qe4+ {[%clk 0:02:30.5]}
51. Kh5 {[%clk 0:02:20.5]} 51... Qf5+ {[%clk 0:02:29.6]} 52. Qxf5+ {[%clk
0:02:18.2]} 52... Kxf5 {[%clk 0:02:29.5]} 53. Kh4 {[%clk 0:02:17.5]} 53... d4
{[%clk 0:02:29]} 54. Kg3 {[%clk 0:02:17]} 54... Ke4 {[%clk 0:02:28.5]} 55. Kf2
{[%clk 0:02:16.5]} 55... Kd3 {[%clk 0:02:28]} 56. Ke1 {[%clk 0:02:15.6]} 56...
c5 {[%clk 0:02:27.7]} 57. Kd1 {[%clk 0:02:14.8]} 57... c4 {[%clk 0:02:27.4]} 58.
Kc1 {[%clk 0:02:14.1]} 58... c3 {[%clk 0:02:27]} 59. Kd1 {[%clk 0:02:13.2]}
59... c2+ {[%clk 0:02:26.5]} 60. Kc1 {[%clk 0:02:12.5]} 60... Kc3 {[%clk
0:02:26.2]} 61. a4 {[%clk 0:02:10.3]} 61... d3 {[%clk 0:02:26.1]} 62. a5 {[%clk
0:02:09.1]} 62... d2# {[%clk 0:02:26]} 0-1

[Event "Live Chess"]
[Site "Chess.com"]
[Date "2023.05.20"]
[Round "-"]
[White "BJAW87"]
[Black "f4nomore"]
[Result "0-1"]
[WhiteElo "1458"]
[BlackElo "1375"]
[TimeControl "300"]
[EndTime "10:30:26 PDT"]
[Termination "f4nomore won by checkmate"]

1. e4 {[%clk 0:04:58.8]} 1... g6 {[%clk 0:04:59.9]} 2. d4 {[%clk 0:04:57.6]}
2... Bg7 {[%clk 0:04:59.8]} 3. Nf3 {[%clk 0:04:56.1]} 3... d6 {[%clk 0:04:58.9]}
4. Be3 {[%clk 0:04:54.7]} 4... Nf6 {[%clk 0:04:57.3]} 5. Bd3 {[%clk 0:04:52.4]}
5... Ng4 {[%clk 0:04:53.5]} 6. O-O {[%clk 0:04:37.1]} 6... Nxe3 {[%clk
0:04:51.9]} 7. fxe3 {[%clk 0:04:37]} 7... O-O {[%clk 0:04:50.7]} 8. e5 {[%clk
0:04:34.5]} 8... dxe5 {[%clk 0:04:49]} 9. Nxe5 {[%clk 0:04:34.4]} 9... Nd7
{[%clk 0:04:45.9]} 10. Nxd7 {[%clk 0:04:17.2]} 10... Bxd7 {[%clk 0:04:39.2]} 11.
Qf3 {[%clk 0:04:14.1]} 11... Bc6 {[%clk 0:04:31.5]} 12. Qg3 {[%clk 0:04:03.4]}
12... Bxd4 {[%clk 0:04:24.7]} 13. exd4 {[%clk 0:04:00.9]} 13... Qxd4+ {[%clk
0:04:22.7]} 14. Kh1 {[%clk 0:03:59]} 14... Qxb2 {[%clk 0:04:15.5]} 15. Nd2
{[%clk 0:03:57.5]} 15... e5 {[%clk 0:04:01.6]} 16. Ne4 {[%clk 0:03:50.8]} 16...
Bxe4 {[%clk 0:03:56.6]} 17. Bxe4 {[%clk 0:03:50.7]} 17... Rad8 {[%clk
0:03:51.4]} 18. Bxb7 {[%clk 0:03:44.8]} 18... Qxb7 {[%clk 0:03:48.5]} 19. Rab1
{[%clk 0:03:43.4]} 19... Qa6 {[%clk 0:03:45]} 20. Qxe5 {[%clk 0:03:41.5]} 20...
Rb8 {[%clk 0:03:38.7]} 21. Qxc7 {[%clk 0:03:24.8]} 21... Rxb1 {[%clk 0:03:30.3]}
22. Rxb1 {[%clk 0:03:21.9]} 22... Qxa2 {[%clk 0:03:28]} 23. Rf1 {[%clk
0:03:18.1]} 23... a5 {[%clk 0:03:19]} 24. c4 {[%clk 0:03:15.4]} 24... a4 {[%clk
0:03:12.4]} 25. c5 {[%clk 0:03:12.6]} 25... Qc2 {[%clk 0:03:09.9]} 26. Qa5
{[%clk 0:03:01.3]} 26... Qc4 {[%clk 0:03:01.7]} 27. Ra1 {[%clk 0:02:55.9]} 27...
Rc8 {[%clk 0:02:45]} 28. h3 {[%clk 0:02:39.4]} 28... Rxc5 {[%clk 0:02:36.8]} 29.
Qa8+ {[%clk 0:02:08.4]} 29... Kg7 {[%clk 0:02:26.1]} 30. Rxa4 {[%clk 0:02:07.1]}
30... Qc1+ {[%clk 0:02:23.1]} 31. Kh2 {[%clk 0:02:05.8]} 31... Qf4+ {[%clk
0:02:20]} 32. g3 {[%clk 0:01:54]} 32... Rc2+ {[%clk 0:02:11.3]} 33. Kh1 {[%clk
0:01:50.2]} 33... Qc1# {[%clk 0:02:07.4]} 0-1

[Event "Live Chess"]
[Site "Chess.com"]
[Date "2023.05.20"]
[Round "-"]
[White "YrrriKharkiv"]
[Black "EdenHazard8"]
[Result "0-1"]
[WhiteElo "2037"]
[BlackElo "2125"]
[TimeControl "300"]
[EndTime "10:30:40 PDT"]
[Termination "EdenHazard8 won by resignation"]

1. d4 {[%clk 0:04:56.6]} 1... d5 {[%clk 0:04:58.7]} 2. Nf3 {[%clk 0:04:55.9]}
2... Nf6 {[%clk 0:04:57.8]} 3. c4 {[%clk 0:04:50.6]} 3... e6 {[%clk 0:04:57.1]}
4. Nc3 {[%clk 0:04:49]} 4... Be7 {[%clk 0:04:55.6]} 5. Bg5 {[%clk 0:04:47]} 5...
O-O {[%clk 0:04:52.9]} 6. Qc2 {[%clk 0:04:44.5]} 6... h6 {[%clk 0:04:51.3]} 7.
Bxf6 {[%clk 0:04:43.3]} 7... Bxf6 {[%clk 0:04:51.2]} 8. e3 {[%clk 0:04:42.8]}
8... Re8 {[%clk 0:04:48.4]} 9. Rd1 {[%clk 0:04:39.3]} 9... c6 {[%clk 0:04:47.2]}
10. Be2 {[%clk 0:04:37.7]} 10... Nd7 {[%clk 0:04:44.5]} 11. O-O {[%clk
0:04:35.8]} 11... Nf8 {[%clk 0:04:42.8]} 12. e4 {[%clk 0:04:33.7]} 12... Qc7
{[%clk 0:04:27]} 13. e5 {[%clk 0:04:27.9]} 13... Be7 {[%clk 0:04:24.5]} 14. cxd5
{[%clk 0:04:26.5]} 14... cxd5 {[%clk 0:04:20.1]} 15. Rc1 {[%clk 0:04:22.8]}
15... Qa5 {[%clk 0:04:08.3]} 16. a3 {[%clk 0:04:16.8]} 16... a6 {[%clk
0:04:03.1]} 17. Bd3 {[%clk 0:04:14.9]} 17... Bd7 {[%clk 0:04:00]} 18. Ra1 {[%clk
0:04:11.1]} 18... Rac8 {[%clk 0:03:56.7]} 19. b4 {[%clk 0:04:08.4]} 19... Qc7
{[%clk 0:03:53.5]} 20. Rfc1 {[%clk 0:04:07.7]} 20... Qb6 {[%clk 0:03:47.5]} 21.
Qb3 {[%clk 0:03:49.4]} 21... Rc7 {[%clk 0:03:39.8]} 22. Na4 {[%clk 0:03:26]}
22... Bxa4 {[%clk 0:03:36.3]} 23. Qxa4 {[%clk 0:03:23.7]} 23... Rec8 {[%clk
0:03:34]} 24. Qd1 {[%clk 0:03:16.2]} 24... Rc3 {[%clk 0:03:22.3]} 25. Qd2 {[%clk
0:02:55]} 25... Qc7 {[%clk 0:03:19.3]} 26. Kf1 {[%clk 0:02:37.2]} 26... Rxc1+
{[%clk 0:03:15.2]} 0-1

[Event "Live Chess"]
[Site "Chess.com"]
[Date "2023.05.20"]
[Round "-"]
[White "mightysmasher"]
[Black "Ferrarifan27"]
[Result "1-0"]
[WhiteElo "2111"]
[BlackElo "2085"]
[TimeControl "300"]
[EndTime "10:31:00 PDT"]
[Termination "mightysmasher won by resignation"]

1. e4 {[%clk 0:04:51.5]} 1... e5 {[%clk 0:04:54.2]} 2. Nf3 {[%clk 0:04:50.1]}
2... Nc6 {[%clk 0:04:51.7]} 3. d4 {[%clk 0:04:48.3]} 3... exd4 {[%clk
0:04:48.3]} 4. Nxd4 {[%clk 0:04:47.1]} 4... Nf6 {[%clk 0:04:46.9]} 5. Nc3 {[%clk
0:04:45.7]} 5... Bb4 {[%clk 0:04:33.8]} 6. Nxc6 {[%clk 0:04:43.4]} 6... bxc6
{[%clk 0:04:31.8]} 7. Bd3 {[%clk 0:04:42.3]} 7... d5 {[%clk 0:04:29.2]} 8. exd5
{[%clk 0:04:41.2]} 8... cxd5 {[%clk 0:04:27.6]} 9. O-O {[%clk 0:04:40.2]} 9...
O-O {[%clk 0:04:26.3]} 10. Be3 {[%clk 0:04:37.8]} 10... c6 {[%clk 0:04:23.9]}
11. Bg5 {[%clk 0:04:32.8]} 11... h6 {[%clk 0:04:19.7]} 12. Bh4 {[%clk
0:04:30.9]} 12... Qd6 {[%clk 0:04:15.1]} 13. Qf3 {[%clk 0:04:26.6]} 13... Bg4
{[%clk 0:04:04.6]} 14. Qg3 {[%clk 0:04:19.8]} 14... Qxg3 {[%clk 0:03:46.8]} 15.
Bxg3 {[%clk 0:04:15.9]} 15... Rfe8 {[%clk 0:03:34.2]} 16. h3 {[%clk 0:04:10.1]}
16... Bd7 {[%clk 0:03:25.8]} 17. a3 {[%clk 0:04:05.7]} 17... Bxc3 {[%clk
0:03:18.6]} 18. bxc3 {[%clk 0:04:03.6]} 18... c5 {[%clk 0:03:16.4]} 19. Rfe1
{[%clk 0:03:59.2]} 19... c4 {[%clk 0:03:13.1]} 20. Bf1 {[%clk 0:03:55.8]} 20...
Bf5 {[%clk 0:03:07.7]} 21. Be5 {[%clk 0:03:50.5]} 21... Bxc2 {[%clk 0:03:02.5]}
22. f3 {[%clk 0:03:47.8]} 22... Nd7 {[%clk 0:02:36.6]} 23. Bd4 {[%clk 0:03:45]}
23... Nb6 {[%clk 0:02:30.5]} 24. g3 {[%clk 0:03:39.8]} 24... Bb3 {[%clk
0:02:16.8]} 25. Bg2 {[%clk 0:03:36.1]} 25... f6 {[%clk 0:02:12.6]} 26. f4 {[%clk
0:03:34.5]} 26... Rxe1+ {[%clk 0:02:06.2]} 27. Rxe1 {[%clk 0:03:32.5]} 27... Kf7
{[%clk 0:02:03.8]} 28. Bxb6 {[%clk 0:03:31]} 28... axb6 {[%clk 0:02:02.8]} 29.
Bxd5+ {[%clk 0:03:30.1]} 29... Kf8 {[%clk 0:02:01.7]} 30. Bxa8 {[%clk
0:03:28.9]} 1-0

[Event "Live Chess"]
[Site "Chess.com"]
[Date "2023.05.20"]
[Round "-"]
[White "daveeeeR"]
[Black "gmnorfolk"]
[Result "1-0"]
[WhiteElo "1295"]
[BlackElo "2133"]
[TimeControl "300"]
[EndTime "10:31:14 PDT"]
[Termination "daveeeeR won by resignation"]

1. d4 {[%clk 0:04:57.1]} 1... Nf6 {[%clk 0:04:58.3]} 2. Bf4 {[%clk 0:04:55.1]}
2... c5 {[%clk 0:04:51.2]} 3. dxc5 {[%clk 0:04:52.1]} 3... Na6 {[%clk
0:04:48.3]} 4. Nf3 {[%clk 0:04:34.8]} 4... Nxc5 {[%clk 0:04:46.1]} 5. e3 {[%clk
0:04:33.9]} 5... Qb6 {[%clk 0:04:44.5]} 6. b3 {[%clk 0:04:31.1]} 6... g6 {[%clk
0:04:41.1]} 7. Bd3 {[%clk 0:04:24.1]} 7... Bg7 {[%clk 0:04:38.7]} 8. O-O {[%clk
0:04:22.5]} 8... d6 {[%clk 0:04:32.4]} 9. Nbd2 {[%clk 0:04:17.9]} 9... e5 {[%clk
0:04:27.3]} 10. Bg3 {[%clk 0:04:14.8]} 10... e4 {[%clk 0:04:15.3]} 11. Nc4
{[%clk 0:04:13.8]} 11... exd3 {[%clk 0:04:09.5]} 12. Nxb6 {[%clk 0:04:11.5]}
12... axb6 {[%clk 0:04:03.1]} 13. Nd4 {[%clk 0:03:58.5]} 13... dxc2 {[%clk
0:03:59.5]} 14. Qxc2 {[%clk 0:03:55.9]} 14... Nce4 {[%clk 0:03:54.5]} 15. a4
{[%clk 0:03:44.8]} 15... O-O {[%clk 0:03:50.9]} 16. Rac1 {[%clk 0:03:36.3]}
16... Bd7 {[%clk 0:03:46.3]} 17. Qc7 {[%clk 0:03:18.9]} 17... Nxg3 {[%clk
0:03:33.1]} 18. hxg3 {[%clk 0:03:14.9]} 18... Rfd8 {[%clk 0:03:03.1]} 19. Qxb6
{[%clk 0:03:04.9]} 19... Nd5 {[%clk 0:02:52.4]} 20. Qxb7 {[%clk 0:02:47.3]}
20... Nf6 {[%clk 0:02:46.7]} 21. Qf3 {[%clk 0:02:41.3]} 21... Bg4 {[%clk
0:02:42]} 22. Qc6 {[%clk 0:02:33.1]} 22... Bd7 {[%clk 0:02:37.4]} 23. Qxd6
{[%clk 0:02:21]} 23... Ne4 {[%clk 0:02:31.8]} 24. Qa3 {[%clk 0:02:05.5]} 24...
Be8 {[%clk 0:02:14.1]} 25. Rfd1 {[%clk 0:01:57.6]} 25... Bf8 {[%clk 0:02:07.3]}
26. Qb2 {[%clk 0:01:46.6]} 26... Bg7 {[%clk 0:02:05.6]} 27. Qb1 {[%clk 0:01:38]}
27... f6 {[%clk 0:01:52.3]} 28. Qxe4 {[%clk 0:01:31.1]} 1-0

[Event "Live Chess"]
[Site "Chess.com"]
[Date "2023.05.20"]
[Round "-"]
[White "worldchessleaguelive"]
[Black "Conradical12"]
[Result "0-1"]
[WhiteElo "1413"]
[BlackElo "1537"]
[TimeControl "300"]
[EndTime "10:31:15 PDT"]
[Termination "Conradical12 won by checkmate"]

1. d4 {[%clk 0:04:55.6]} 1... d5 {[%clk 0:04:56.3]} 2. Bf4 {[%clk 0:04:53.9]}
2... Nc6 {[%clk 0:04:55.1]} 3. Nf3 {[%clk 0:04:52.2]} 3... Bg4 {[%clk
0:04:54.1]} 4. e3 {[%clk 0:04:51.1]} 4... f6 {[%clk 0:04:53.2]} 5. Be2 {[%clk
0:04:49.9]} 5... e5 {[%clk 0:04:52.2]} 6. dxe5 {[%clk 0:04:48]} 6... fxe5 {[%clk
0:04:51.4]} 7. Bg5 {[%clk 0:04:46.6]} 7... Be7 {[%clk 0:04:48.1]} 8. Bxe7 {[%clk
0:04:45.2]} 8... Ngxe7 {[%clk 0:04:47.2]} 9. h3 {[%clk 0:04:44.4]} 9... Bxf3
{[%clk 0:04:45.6]} 10. gxf3 {[%clk 0:04:41.1]} 10... O-O {[%clk 0:04:45.5]} 11.
Nc3 {[%clk 0:04:34.4]} 11... d4 {[%clk 0:04:43.8]} 12. Ne4 {[%clk 0:04:32.7]}
12... dxe3 {[%clk 0:04:40.1]} 13. fxe3 {[%clk 0:04:28.9]} 13... Nd5 {[%clk
0:04:38.8]} 14. Bc4 {[%clk 0:04:25.5]} 14... Ne7 {[%clk 0:04:25.8]} 15. Nc3
{[%clk 0:04:23.1]} 15... c6 {[%clk 0:04:24.3]} 16. e4 {[%clk 0:04:21.4]} 16...
Kh8 {[%clk 0:04:22.4]} 17. exd5 {[%clk 0:04:19.4]} 17... cxd5 {[%clk 0:04:22.3]}
18. Nxd5 {[%clk 0:04:11.1]} 18... Qa5+ {[%clk 0:04:19.6]} 19. Qd2 {[%clk
0:04:03.2]} 19... Qd8 {[%clk 0:04:12.4]} 20. Nxe7 {[%clk 0:04:00.4]} 20... Qe8
{[%clk 0:04:11.6]} 21. Nd5 {[%clk 0:03:42.5]} 21... Rd8 {[%clk 0:04:09.4]} 22.
O-O-O {[%clk 0:03:40.6]} 22... e4 {[%clk 0:04:08.4]} 23. fxe4 {[%clk 0:03:36.1]}
23... Qxe4 {[%clk 0:04:07.8]} 24. Bb3 {[%clk 0:03:34.7]} 24... Rc8 {[%clk
0:03:35.6]} 25. Rhe1 {[%clk 0:03:25.8]} 25... Qh4 {[%clk 0:03:26]} 26. Ne7
{[%clk 0:03:07.7]} 26... Rc5 {[%clk 0:03:02.8]} 27. Qd4 {[%clk 0:03:00.8]} 27...
Qg5+ {[%clk 0:02:48.2]} 28. Kb1 {[%clk 0:02:44.6]} 28... a5 {[%clk 0:02:44.9]}
29. Nd5 {[%clk 0:02:29]} 29... Rcc8 {[%clk 0:02:35.4]} 30. Rg1 {[%clk
0:02:25.6]} 30... Qh6 {[%clk 0:02:32.3]} 31. Qd2 {[%clk 0:02:13.2]} 31... Qh5
{[%clk 0:02:25.9]} 32. Nf4 {[%clk 0:02:06.1]} 32... Qh4 {[%clk 0:02:20.3]} 33.
Ne6 {[%clk 0:01:58.6]} 33... Rfe8 {[%clk 0:02:13.4]} 34. Nxg7 {[%clk 0:01:52.1]}
34... Red8 {[%clk 0:02:05.6]} 35. Qg5 {[%clk 0:01:47.4]} 35... Rxd1+ {[%clk
0:02:02.1]} 36. Rxd1 {[%clk 0:01:37]} 36... Qxg5 {[%clk 0:02:01.5]} 37. Ne6
{[%clk 0:01:32.1]} 37... Qe5 {[%clk 0:01:49.3]} 38. a3 {[%clk 0:01:25.8]} 38...
Qe4 {[%clk 0:01:44.5]} 39. Ka2 {[%clk 0:01:08]} 39... a4 {[%clk 0:01:42.5]} 40.
Bd5 {[%clk 0:00:51]} 40... Qxc2 {[%clk 0:01:39.6]} 41. Rf1 {[%clk 0:00:37.7]}
41... b5 {[%clk 0:01:25.8]} 42. Bb7 {[%clk 0:00:33.7]} 42... Re8 {[%clk
0:01:12.5]} 43. Bd5 {[%clk 0:00:25.2]} 43... b4 {[%clk 0:01:09.4]} 44. axb4
{[%clk 0:00:22]} 44... a3 {[%clk 0:01:08.3]} 45. Kxa3 {[%clk 0:00:14.2]} 45...
Qd3+ {[%clk 0:01:02.5]} 46. Bb3 {[%clk 0:00:11.4]} 46... Qxf1 {[%clk 0:01:01.2]}
47. Ka4 {[%clk 0:00:01.2]} 47... Qa6# {[%clk 0:00:58.8]} 0-1

[Event "Live Chess"]
[Site "Chess.com"]
[Date "2023.05.20"]
[Round "-"]
[White "SavagePawn7"]
[Black "xx_blindpuffin_xx"]
[Result "0-1"]
[WhiteElo "753"]
[BlackElo "2188"]
[TimeControl "300"]
[EndTime "10:31:24 PDT"]
[Termination "xx_blindpuffin_xx won by resignation"]

1. e4 {[%clk 0:04:57.4]} 1... e6 {[%clk 0:04:59.3]} 2. Bc4 {[%clk 0:04:54.2]}
2... d5 {[%clk 0:04:58.4]} 3. Nf3 {[%clk 0:04:50.9]} 3... dxc4 {[%clk
0:04:57.4]} 4. d3 {[%clk 0:04:41.2]} 4... cxd3 {[%clk 0:04:56.3]} 5. cxd3 {[%clk
0:04:41.1]} 5... Nc6 {[%clk 0:04:54.7]} 6. Qa4 {[%clk 0:04:37.9]} 6... Qxd3
{[%clk 0:04:49.8]} 7. Bg5 {[%clk 0:04:37.8]} 7... Bb4+ {[%clk 0:04:45.6]} 8.
Nbd2 {[%clk 0:04:31.9]} 8... Bd7 {[%clk 0:04:35]} 9. Qxa7 {[%clk 0:04:07]} 9...
Rxa7 {[%clk 0:04:29.8]} 10. Ne5 {[%clk 0:03:58.2]} 10... Qxe4+ {[%clk
0:04:25.5]} 0-1

[Event "Live Chess"]
[Site "Chess.com"]
[Date "2023.05.20"]
[Round "-"]
[White "ramses-IIG"]
[Black "DenDenTie"]
[Result "1-0"]
[WhiteElo "773"]
[BlackElo "877"]
[TimeControl "300"]
[EndTime "10:31:28 PDT"]
[Termination "ramses-IIG won by checkmate"]

1. e4 {[%clk 0:04:58.8]} 1... e5 {[%clk 0:04:58.3]} 2. Nf3 {[%clk 0:04:58.7]}
2... Nc6 {[%clk 0:04:57.5]} 3. Bc4 {[%clk 0:04:54.9]} 3... Nf6 {[%clk
0:04:55.5]} 4. d3 {[%clk 0:04:53]} 4... d5 {[%clk 0:04:49.6]} 5. exd5 {[%clk
0:04:51.4]} 5... Nxd5 {[%clk 0:04:47.8]} 6. Ng5 {[%clk 0:04:45.8]} 6... Bf5
{[%clk 0:04:33.8]} 7. Qf3 {[%clk 0:04:41.9]} 7... Be6 {[%clk 0:04:22.9]} 8. Nxe6
{[%clk 0:04:35.1]} 8... fxe6 {[%clk 0:04:20.5]} 9. Bb5 {[%clk 0:04:35]} 9... Qd7
{[%clk 0:04:11.2]} 10. O-O {[%clk 0:04:28.7]} 10... a6 {[%clk 0:04:10]} 11. Ba4
{[%clk 0:04:27]} 11... O-O-O {[%clk 0:03:53.1]} 12. Qe4 {[%clk 0:04:18.9]} 12...
Bc5 {[%clk 0:03:43]} 13. Bxc6 {[%clk 0:04:09.8]} 13... Qxc6 {[%clk 0:03:40.1]}
14. Qxe5 {[%clk 0:04:08.9]} 14... Rhg8 {[%clk 0:03:09.5]} 15. Bg5 {[%clk
0:03:59.2]} 15... Rdf8 {[%clk 0:03:01]} 16. c4 {[%clk 0:03:39.7]} 16... Nf6
{[%clk 0:02:30.9]} 17. Nd2 {[%clk 0:03:19.4]} 17... Ne8 {[%clk 0:02:25.1]} 18.
Nb3 {[%clk 0:03:10.6]} 18... Bb6 {[%clk 0:02:16.8]} 19. d4 {[%clk 0:03:04.8]}
19... Nd6 {[%clk 0:02:03]} 20. Be7 {[%clk 0:03:00.7]} 20... Re8 {[%clk
0:01:47.9]} 21. Bxd6 {[%clk 0:02:57.4]} 21... Qxd6 {[%clk 0:01:44.1]} 22. Qe4
{[%clk 0:02:39.2]} 22... e5 {[%clk 0:01:32.4]} 23. c5 {[%clk 0:02:35.8]} 23...
exd4 {[%clk 0:01:22.6]} 24. Qxe8+ {[%clk 0:02:29.5]} 24... Rxe8 {[%clk
0:01:19.2]} 25. cxd6 {[%clk 0:02:28.1]} 25... cxd6 {[%clk 0:01:16.7]} 26. Rad1
{[%clk 0:02:23.5]} 26... Re2 {[%clk 0:01:05.5]} 27. Nxd4 {[%clk 0:02:13.2]}
27... Bxd4 {[%clk 0:01:01.1]} 28. Rxd4 {[%clk 0:02:13.1]} 28... Rd2 {[%clk
0:00:57.8]} 29. Rxd2 {[%clk 0:02:11]} 29... b5 {[%clk 0:00:55.2]} 30. Rxd6
{[%clk 0:02:09.3]} 30... a5 {[%clk 0:00:53.7]} 31. Re1 {[%clk 0:02:07.2]} 31...
Kb7 {[%clk 0:00:43.7]} 32. Re7+ {[%clk 0:02:05.6]} 32... Kb8 {[%clk 0:00:42.3]}
33. Rd8# {[%clk 0:02:04.6]} 1-0